fUSD/lending_fUSD_20260126
["ID","MTS","AMOUNT","RATE_DAILY","PERIOD"]
[403642976,1769446996882,516.84475461,0.00016987,2]
[403642977,1769446996939,516.84475461,0.00016987,2]
[403642979,1769446996974,516.84475461,0.00016987,2]
[403642980,1769446997014,516.84475461,0.00016987,2]
[403642981,1769446997049,516.84475461,0.00016987,2]
[403642982,1769446997110,512.64034172,0.00016987,2]
[403642983,1769446997142,4.20441289,0.00016987,2]
[403642984,1769446997204,516.84475461,0.00016987,2]
[403642985,1769446997239,516.84475461,0.00016987,2]
[403642986,1769446997761,516.84475461,0.00016987,2]
[403642995,1769447015010,195.39,0.0001672,2]
[403642997,1769447017986,500.0,0.00016988,2]
[403642999,1769447018289,500.0,0.00016988,2]
[403643000,1769447019305,500.0,0.00016988,2]
[403643008,1769447030852,210.33107488,0.00016987,2]
[403643011,1769447038074,506.33966749,0.00016988,2]
[403643013,1769447041298,300.0,0.00016987,2]
[403643014,1769447042382,154.54337299,0.00016888,2]
[403643073,1769447191609,-503.0,0.000162,2]
[403643074,1769447191637,-429.0167697,0.00016879,2]
[403643075,1769447191664,-429.01676969,0.00016884,2]
[403643076,1769447191693,-429.01676969,0.00016888,2]
[403643077,1769447191723,-279.88724274,0.00016888,2]
[403643078,1769447191753,-294.8938,0.00016888,2]
[403643079,1769447191781,-2500.0,0.00016888,2]
[403643080,1769447191887,-2564.93765723,0.00016978,2]
[403643081,1769447191916,-1127.0,0.00016986,2]
[403643082,1769447191946,-150.00073965,0.00016987,2]
[403643083,1769447191974,-240.21,0.00016987,2]
[403643084,1769447192003,-648.41377788,0.00016987,5]
[403643085,1769447192154,-538.88565048,0.00016987,5]
[403643086,1769447192182,-194.38574049,0.00016987,2]
[403643087,1769447192212,-275.09399356,0.00016987,2]
[403643088,1769447192242,-500.0,0.00016987,2]
[403643089,1769447192273,-360.55465728,0.00016987,2]
[403643090,1769447192302,-500.0,0.00016987,2]
[403643092,1769447192332,-500.0,0.00016987,2]
[403643093,1769447192363,-500.0,0.00016987,2]
[403643094,1769447192392,-352.57083472,0.00016987,2]
[403643095,1769447192421,-647.68539864,0.00016987,2]
[403643096,1769447192448,-500.0,0.00016988,2]
[403643097,1769447194210,-500.0,0.00016988,2]
[403643098,1769447194244,-200.0,0.00016988,2]
[403643099,1769447194277,-293.37732055,0.00016988,2]
[403643100,1769447194306,-293.31482414,0.00016988,2]
[403643101,1769447195131,293.31482413,0.00016988,2]
[403643102,1769447195324,195.58488036,0.00016988,2]
[403643103,1769447196163,151.0,0.00016988,2]
[403643104,1769447197099,240.16976073,0.00016988,2]
[403643105,1769447199005,462.2217,0.00016888,2]
[403643106,1769447211150,4316.7639,0.00016888,2]
[403643107,1769447231284,500.0,0.00016988,2]
[403643108,1769447231326,500.0,0.00016988,2]
[403643109,1769447231355,250.0,0.00016988,2]
[403643110,1769447231896,250.0,0.00016988,2]
[403643111,1769447231931,267.5706454,0.00016988,2]
[403643112,1769447231955,232.4293546,0.00016988,2]
[403643113,1769447231985,500.0,0.00016988,2]
[403643114,1769447232671,250.0,0.00016988,2]
[403643115,1769447232758,250.0,0.00016988,2]
[403643116,1769447232787,500.0,0.00016988,2]
[403643117,1769447233319,500.0,0.00016988,2]
[403643118,1769447233354,250.0,0.00016988,2]
[403643119,1769447233430,250.0,0.00016988,2]
[403643120,1769447233486,616.51378963,0.00016988,2]
[403643121,1769447233584,608.79622216,0.00016988,2]
[403643122,1769447233738,250.0,0.00016988,2]
[403643123,1769447234334,250.0,0.00016988,2]
[403643124,1769447234933,250.0,0.00016988,2]
[403643125,1769447235570,250.0,0.00016988,2]
[403643126,1769447236178,349.0,0.00016988,2]
[403643127,1769447238517,578.20924308,0.00016988,2]
[403643128,1769447240739,-500.0,0.00016988,2]
[403643129,1769447240768,-705.97670987,0.00016988,2]
[403643130,1769447240799,-202.09093963,0.00016988,2]
[403643131,1769447240828,-1602.24853334,0.00016988,2]
[403643132,1769447241276,-1562.85919938,0.00016988,2]
[403643133,1769447241319,-10000.01,0.00016988,2]
[403643134,1769447244138,-250.0,0.00016988,2]
[403643135,1769447244632,250.0,0.00016988,2]
[403643136,1769447245636,250.0,0.00016988,2]
[403643137,1769447246335,250.0,0.00016988,2]
[403643138,1769447246727,854.2589148,0.00016988,2]
[403643139,1769447246983,250.0,0.00016988,2]
[403643140,1769447247600,250.0,0.00016988,2]
[403643141,1769447247878,721.12765535,0.00016988,2]
[403643142,1769447248238,250.0,0.00016988,2]
[403643143,1769447248856,250.0,0.00016988,2]
[403643144,1769447249448,250.0,0.00016988,2]
[403643145,1769447250360,174.61919141,0.00016988,2]
[403643146,1769447252324,250.0,0.00016988,2]
[403643147,1769447252807,151.0,0.00016988,2]
[403643148,1769447252871,250.0,0.00016988,2]
[403643149,1769447253006,500.0,0.00016988,2]
[403643150,1769447254106,250.0,0.00016988,2]
[403643151,1769447254221,500.0,0.00016988,2]
[403643152,1769447254424,250.0,0.00016988,2]
[403643153,1769447254532,500.0,0.00016988,2]
[403643154,1769447254562,1755.1513,0.00016888,2]
[403643155,1769447254791,262.39254595,0.00016988,2]
[403643156,1769447254904,500.0,0.00016988,2]
[403643157,1769447255515,572.6107,0.00016988,2]
[403643158,1769447255986,8.84969249,0.00016988,2]
[403643159,1769447256009,3534.15030751,0.00016988,2]
[403643160,1769447257735,322.6107,0.00016988,2]
[403643161,1769447258371,500.0,0.00016988,2]
[403643162,1769447268337,-6143.24899249,0.00016988,2]
[403643163,1769447277604,-10000.01,0.00016988,2]
[403643175,1769447431355,-406.6337151,0.00016718,2]
[403643176,1769447431408,-287.04410206,0.00016718,2]
[403643177,1769447431462,-306.32218284,0.00016718,2]
[403643178,1769447431472,-358.60012804,0.00016788,2]
[403643179,1769447431482,-946.89278515,0.00016887,2]
[403643180,1769447431494,-385.94724604,0.00016887,2]
[403643181,1769447431506,-563.5703304,0.00016887,2]
[403643182,1769447431517,-608.5480005,0.00016887,2]
[403643183,1769447431530,-542.62433888,0.00016887,2]
[403643184,1769447431542,-523.0,0.00016887,2]
[403643192,1769447432026,-47449.49999999,0.00016887,2]
[403643193,1769447432038,-359.27468947,0.00016887,2]
[403643194,1769447432049,-2818.20702984,0.00016887,2]
[403643195,1769447432088,-204825.12664059,0.00016887,2]
[403643196,1769447432100,-7075.46869815,0.00016887,2]
[403643197,1769447432111,-2975.3577455,0.00016887,2]
[403643206,1769447437616,-192.56579549,0.00016886,2]
[403643207,1769447437626,-265129.30043587,0.00016887,2]
[403643208,1769447437637,-465797.18205962,0.00016887,2]
[403643209,1769447437647,-208.96760515,0.00016888,2]
[403643210,1769447437656,-2323.55392105,0.00016888,2]
[403643211,1769447437666,-167.6921,0.00016888,2]
[403643212,1769447437675,-10149.736345,0.0001698,2]
[403643213,1769447437685,-200.0,0.00016988,2]
[403643214,1769447437694,-865.25,0.00016988,2]
[403643215,1769447437705,-865.25,0.00016988,2]
[403643217,1769447437714,-865.25,0.00016988,2]
[403643219,1769447437723,-865.25,0.00016988,2]
[403643221,1769447437732,-865.25,0.00016988,2]
[403643223,1769447437742,-865.25,0.00016988,2]
[403643225,1769447437752,-865.25,0.00016988,2]
[403643227,1769447437761,-865.25,0.00016988,2]
[403643228,1769447437770,-865.25,0.00016988,2]
[403643231,1769447437780,-865.25,0.00016988,2]
[403643232,1769447437789,-865.25,0.00016988,2]
[403643234,1769447437799,-865.25,0.00016988,2]
[403643236,1769447437808,-865.25,0.00016988,2]
[403643238,1769447437817,-865.25,0.00016988,2]
[403643240,1769447437826,-865.25,0.00016988,2]
[403643242,1769447437835,-865.25,0.00016988,2]
[403643244,1769447437846,-865.25,0.00016988,2]
[403643246,1769447437856,-865.25,0.00016988,2]
[403643248,1769447437866,-865.25,0.00016988,2]
[403643251,1769447437876,-865.25,0.00016988,2]
[403643252,1769447437885,-865.25,0.00016988,2]
[403643254,1769447437895,-865.25,0.00016988,2]
[403643255,1769447437905,-865.25,0.00016988,2]
[403643256,1769447437915,-865.42394964,0.00016988,2]
[403643257,1769447437925,-1000.0,0.00016988,2]
[403643258,1769447437935,-32941.4774,0.00016988,2]
[403643259,1769447437945,-250.0,0.00017,2]
[403643260,1769447437958,-279.88724266,0.00017,2]
[403643261,1769447437968,-2323.55392103,0.00017,2]
[403643262,1769447437978,-500.0,0.00017014,2]
[403643263,1769447437988,-500.0,0.00017069,2]
[403643264,1769447437998,-1406.74876121,0.000171,2]
[403643265,1769447438008,-150.0,0.0001711,2]
[403643266,1769447438018,-150.0,0.0001711,2]
[403643267,1769447438028,-150.0,0.0001711,2]
[403643268,1769447438037,-150.0,0.0001711,2]
[403643269,1769447438046,-150.0,0.0001711,2]
[403643270,1769447438056,-500.0,0.0001711,2]
[403643271,1769447438066,-500.0,0.0001711,2]
[403643272,1769447438076,-500.0,0.0001711,2]
[403643273,1769447438086,-150.0,0.0001711,2]
[403643274,1769447438095,-279.88724266,0.00017113,2]
[403643276,1769447438105,-2323.55392103,0.00017113,2]
[403643278,1769447438114,-150.0,0.00017118,2]
[403643280,1769447438123,-500.0,0.00017124,2]
[403643282,1769447438132,-150.00350676,0.0001715,2]
[403643284,1769447438142,-200.0,0.00017158,2]
[403643285,1769447438151,-200.0,0.00017158,2]
[403643288,1769447438162,-150.0,0.00017165,2]
[403643289,1769447438172,-150.0,0.00017165,2]
[403643291,1769447438182,-150.0,0.00017165,2]
[403643293,1769447438192,-150.0,0.00017165,2]
[403643295,1769447438206,-500.0,0.00017165,2]
[403643298,1769447438216,-500.0,0.00017165,2]
[403643300,1769447438227,-500.0,0.00017165,2]
[403643302,1769447438237,-150.0,0.00017173,2]
[403643304,1769447438247,-500.0,0.00017178,2]
[403643306,1769447438257,-150.0,0.00017178,2]
[403643307,1769447438267,-500.0,0.00017178,2]
[403643309,1769447438278,-152.86742029,0.00017189,2]
[403643311,1769447438288,-500.0,0.00017189,2]
[403643314,1769447438299,-500.0,0.00017189,2]
[403643316,1769447438309,-551.95368049,0.00017189,2]
[403643318,1769447438318,-504.38275223,0.00017189,2]
[403643320,1769447438328,-500.0,0.00017189,2]
[403643322,1769447438340,-500.0,0.00017189,2]
[403643324,1769447438356,-500.0,0.00017189,2]
[403643326,1769447438367,-500.0,0.00017189,2]
[403643328,1769447438378,-500.0,0.00017189,2]
[403643330,1769447438388,-401.23235271,0.00017192,2]
[403643332,1769447438398,-500.0,0.00017192,2]
[403643334,1769447438408,-150.0,0.0001722,2]
[403643336,1769447438419,-200.0,0.0001722,2]
[403643338,1769447438428,-150.0,0.0001722,2]
[403643340,1769447438437,-150.0,0.0001722,2]
[403643342,1769447438447,-500.0,0.0001722,2]
[403643344,1769447438458,-500.0,0.0001722,2]
[403643346,1769447438467,-500.0,0.0001722,2]
[403643348,1769447438477,-238.13777936,0.00017222,2]
[403643350,1769447438486,-279.88724266,0.00017225,2]
[403643352,1769447438495,-2323.55392103,0.00017225,2]
[403643354,1769447438505,-151.72557844,0.00017228,2]
[403643356,1769447438514,-500.0,0.00017233,2]
[403643358,1769447438523,-500.0,0.00017233,2]
[403643360,1769447438533,-158.77791206,0.0001724,2]
[403643361,1769447438542,-1000.0,0.0001726,2]
[403643363,1769447438551,-166.66,0.00017261,2]
[403643365,1769447438561,-240.21,0.00017261,2]
[403643367,1769447438570,-150.0,0.00017274,2]
[403643369,1769447438580,-500.0,0.00017274,2]
[403643371,1769447438590,-280.72866755,0.00017274,2]
[403643373,1769447438599,-500.0,0.00017274,2]
[403643375,1769447438609,-500.0,0.00017288,2]
[403643377,1769447438618,-500.0,0.00017288,2]
[403643379,1769447438627,-200.0,0.00017329,2]
[403643381,1769447438637,-200.0,0.00017329,2]
[403643383,1769447438647,-500.0,0.00017329,2]
[403643385,1769447438656,-375.04776947,0.00017329,2]
[403643387,1769447438666,-279.88724266,0.00017338,2]
[403643389,1769447438676,-2323.55392103,0.00017338,2]
[403643391,1769447438687,-323.95112934,0.00017342,2]
[403643394,1769447438697,-500.0,0.00017343,2]
[403643395,1769447438707,-500.0,0.00017384,2]
[403643398,1769447438717,-177.76,0.00017392,2]
[403643399,1769447438727,-500.0,0.00017398,2]
[403643401,1769447438736,-500.0,0.00017439,2]
[403643404,1769447438747,-279.88724266,0.0001745,2]
[403643405,1769447438756,-2323.55392103,0.0001745,2]
[403643407,1769447438766,-500.0,0.00017452,2]
[403643409,1769447438776,-150.0,0.00017488,2]
[403643411,1769447438786,-150.0,0.00017488,2]
[403643413,1769447438795,-150.0,0.00017488,2]
[403643415,1769447438804,-500.0,0.00017494,2]
[403643417,1769447438814,-200.0,0.00017503,2]
[403643419,1769447438824,-200.0,0.00017503,2]
[403643421,1769447438834,-500.0,0.00017507,2]
[403643423,1769447438844,-460.0,0.00017529,2]
[403643425,1769447438855,-1000.0,0.00017534,2]
[403643427,1769447438864,-240.21,0.00017535,2]
[403643429,1769447438874,-885.86649465,0.00017536,2]
[403643431,1769447438885,-181.08010149,0.00017536,2]
[403643433,1769447438894,-500.0,0.00017548,2]
[403643435,1769447438904,-195.39,0.00017556,2]
[403643438,1769447438914,-500.0,0.00017562,2]
[403643440,1769447438924,-279.88724266,0.00017563,2]
[403643442,1769447438934,-2323.55392103,0.00017563,2]
[403643443,1769447438944,-372.23703069,0.00017572,2]
[403643446,1769447438958,-87.76296931,0.00017572,2]
[403643448,1769447438968,-241.0,0.00017596,2]
[403643450,1769447438977,-500.0,0.00017603,2]
[403643452,1769447438986,-2016.26466095,0.00017612,2]
[403643454,1769447438995,-460.0,0.00017615,2]
[403643456,1769447439005,-500.0,0.00017617,2]
[403643458,1769447439014,-152.72824357,0.0001764,2]
[403643460,1769447439023,-460.0,0.00017657,2]
[403643462,1769447439033,-500.0,0.00017658,2]
[403643464,1769447439043,-247.34389463,0.00017672,2]
[403643466,1769447439052,-279.88724266,0.00017675,2]
[403643468,1769447439062,-2323.55392103,0.00017675,2]
[403643470,1769447439071,-200.0,0.00017678,2]
[403643472,1769447439080,-200.0,0.00017678,2]
[403643474,1769447439091,-460.0,0.000177,2]
[403643476,1769447439101,-4237.50410409,0.00017708,2]
[403643478,1769447439110,-265.13406468,0.00017708,2]
[403643480,1769447439119,-500.0,0.00017713,2]
[403643482,1769447439129,-2976.98,0.00017728,2]
[403643484,1769447439139,-499.99,0.00017728,2]
[403643486,1769447439149,-150.99,0.00017728,2]
[403643488,1769447439159,-9999.99,0.00017728,2]
[403643490,1769447439170,-150.99,0.00017728,2]
[403643492,1769447439181,-21537.84,0.00017728,2]
[403643494,1769447439191,-1843.43,0.00017728,2]
[403643496,1769447439201,-9454.21,0.00017728,2]
[403643498,1769447439211,-412.32,0.00017728,2]
[403643500,1769447439220,-3752.64,0.00017728,2]
[403643502,1769447439230,-460.0,0.00017743,2]
[403643504,1769447439239,-500.0,0.00017768,2]
[403643506,1769447439249,-305.29758295,0.00017777,2]
[403643508,1769447439259,-600.01,0.00017781,2]
[403643510,1769447439268,-600.01,0.00017781,2]
[403643512,1769447439279,-600.01,0.00017781,2]
[403643514,1769447439289,-600.01,0.00017781,2]
[403643516,1769447439298,-828.63,0.00017781,2]
[403643518,1769447439308,-460.0,0.00017786,2]
[403643520,1769447439318,-397.98928708,0.00017787,2]
[403643522,1769447439328,-702.10027759,0.00017787,2]
[403643524,1769447439338,-1050.30002542,0.00017787,2]
[403643526,1769447439349,-1421.0856,0.00017787,2]
[403643528,1769447439358,-279.88724266,0.00017788,2]
[403643530,1769447439368,-2323.55392103,0.00017788,2]
[403643532,1769447439377,-1000.0,0.00017808,2]
[403643534,1769447439388,-240.21,0.00017809,2]
[403643536,1769447439397,-866.17493,0.0001782,2]
[403643538,1769447439406,-866.17493,0.0001782,2]
[403643540,1769447439415,-241.0,0.0001782,2]
[403643542,1769447439426,-500.0,0.00017822,2]
[403643544,1769447439435,-241.0,0.00017823,2]
[403643546,1769447439444,-460.0,0.00017829,2]
[403643548,1769447439454,-200.0,0.00017856,2]
[403643550,1769447439463,-460.0,0.00017872,2]
[403643552,1769447439472,-461.8912898,0.00017877,2]
[403643554,1769447439481,-1420.19,0.00017889,2]
[403643556,1769447439491,-1187.29942836,0.00017898,5]
[403643558,1769447439500,-162.08,0.00017899,2]
[403643560,1769447439509,-1335.515,0.00017899,2]
[403643564,1769447439518,-1269.0,0.00017899,2]
[403643568,1769447439528,-184.0,0.00017899,2]
[403643572,1769447439537,-1204.0,0.00017899,2]
[403643575,1769447439546,-916.0,0.00017899,2]
[403643578,1769447439555,-4831.0,0.00017899,2]
[403643581,1769447439564,-567.0,0.00017899,2]
[403643584,1769447439573,-2442.0,0.00017899,2]
[403643587,1769447439583,-422.60835024,0.000179,2]
[403643590,1769447439592,-279.88724266,0.000179,2]
[403643592,1769447439601,-2323.55392103,0.000179,2]
[403643594,1769447439611,-460.0,0.00017914,2]
[403643596,1769447439620,-382.79404225,0.00017922,2]
[403643598,1769447439629,-152.21,0.00017956,2]
[403643600,1769447439639,-460.0,0.00017957,2]
[403643602,1769447439648,-4610.0,0.00017966,2]
[403643604,1769447439657,-3358.80398,0.00017966,2]
[403643606,1769447439667,-10039.9029261,0.00017966,2]
[403643608,1769447439676,-500.0,0.00017973,2]
[403643610,1769447439685,-166.66,0.00017973,2]
[403643612,1769447439694,-500.0,0.00017982,2]
[403643614,1769447439706,-152.21,0.0001799,2]
[403643616,1769447439715,-152.21,0.0001799,2]
[403643618,1769447439725,-152.21,0.0001799,2]
[403643620,1769447439735,-152.21,0.0001799,2]
[403643622,1769447439744,-152.21,0.0001799,2]
[403643624,1769447439753,-152.21,0.0001799,2]
[403643626,1769447439763,-152.21,0.0001799,2]
[403643627,1769447439772,-152.21,0.0001799,2]
[403643629,1769447439781,-152.21,0.0001799,2]
[403643631,1769447439791,-152.21,0.0001799,2]
[403643633,1769447439800,-152.21,0.0001799,2]
[403643635,1769447439809,-152.21,0.0001799,2]
[403643636,1769447439819,-152.21,0.0001799,2]
[403643638,1769447439828,-152.21,0.0001799,2]
[403643640,1769447439837,-152.21,0.0001799,2]
[403643642,1769447439847,-152.21,0.0001799,2]
[403643644,1769447439856,-500.0,0.00017999,2]
[403643645,1769447439866,-500.0,0.00017999,2]
[403643646,1769447439875,-500.0,0.00017999,2]
[403643648,1769447439884,-500.0,0.00017999,2]
[403643649,1769447439893,-154.8450533,0.00017999,2]
[403643651,1769447439903,-500.0,0.00017999,2]
[403643653,1769447439912,-537.9533771,0.00017999,2]
[403643654,1769447439921,-300.0,0.00017999,2]
[403643656,1769447439930,-150.0,0.00017999,2]
[403643658,1769447439940,-150.0,0.00017999,2]
[403643660,1769447439948,-26659.62496081,0.00018,2]
[403643662,1769447439962,-346.84501543,0.00018,2]
[403643664,1769447439974,-2633.71010092,0.00018,2]
[403643668,1769447440015,-424.06072804,0.00018,2]
[403643701,1769447440367,-258.62869344,0.00016886,2]
[403643703,1769447440377,-248.84746823,0.00017,2]
[403643705,1769447440387,-248.84746823,0.00017069,2]
[403643706,1769447440397,-248.84746823,0.0001711,2]
[403643708,1769447440406,-5493.67968944,0.00018,2]
[403643710,1769447440419,-554823.01977139,0.00018,2]
[403643712,1769447440430,-549.76957592,0.00018,2]
[403643714,1769447440441,-9461.5,0.00018,2]
[403643717,1769447440453,-1043.55465848,0.00018,2]
[403643719,1769447440464,-5092.71400791,0.00018,2]
[403643725,1769447440521,-306.069,0.00018,2]
[403643727,1769447440532,-512.27802841,0.00018,2]
[403643730,1769447440555,-4449.80494527,0.00018,2]
[403643732,1769447440566,-2257.52930738,0.00018,2]
[403643735,1769447440585,-52678.60475689,0.00018,2]
[403643737,1769447440596,-11997.74518315,0.00018,2]
[403643739,1769447440607,-1339.99496718,0.00018,2]
[403643741,1769447440618,-588.0,0.00018,2]
[403643743,1769447440630,-1243.17062204,0.00018,2]
[403643745,1769447440641,-438.94,0.00018,2]
[403643747,1769447440652,-2050439.92174519,0.00018,2]
[403643749,1769447440660,-2743396.28367263,0.00018,2]
[403643788,1769447442624,-225441.52902398,0.00018,2]
[403643789,1769447442783,-46962.27219133,0.00018,2]
[403643790,1769447442796,-9054.03163964,0.00018,2]
[403643791,1769447442807,-258.67386569,0.00018,2]
[403643792,1769447442818,-2287.30477774,0.00018,2]
[403643793,1769447442855,-633.92371775,0.00018,2]
[403643833,1769447446058,-11004.77245485,0.00018,2]
[403643834,1769447446102,-408.7263527,0.00018,2]
[403643835,1769447446115,-297.60820888,0.00018,2]
[403643836,1769447446171,-14735.58417981,0.00018,2]
[403643839,1769447589698,-1000.0,0.00016787,2]
[403643840,1769447589721,-193.73793596,0.00016885,2]
[403643841,1769447592225,-106.26206404,0.00016885,2]
[403643842,1769447592249,-341.90352873,0.00016886,2]
[403643843,1769447605230,-181.04008541,0.00016886,2]
[403643844,1769447605253,-78.62480094,0.00016886,2]
[403643845,1769447668103,-421.37519906,0.00016886,2]
[403643846,1769447668132,-500.0,0.00016886,2]
[403643847,1769447668160,-155.95566409,0.00016886,2]
[403643848,1769447668188,-500.0,0.00016886,2]
[403643849,1769447668217,-500.0,0.00016886,2]
[403643850,1769447668246,-500.0,0.00016886,2]
[403643851,1769447668276,-500.0,0.00016886,2]
[403643852,1769447668305,-500.0,0.00016886,2]
[403643853,1769447668335,-500.0,0.00016886,2]
[403643854,1769447668366,-500.0,0.00016886,2]
[403643855,1769447668398,-345.3482737,0.00016886,2]
[403643856,1769447668593,-154.6517263,0.00016886,2]
[403643857,1769447668662,-500.0,0.00016886,2]
[403643858,1769447668692,-500.0,0.00016886,2]
[403643859,1769447668723,-500.0,0.00016886,2]
[403643860,1769447668754,-500.0,0.00016886,2]
[403643861,1769447668785,-500.0,0.00016886,2]
[403643862,1769447668815,-500.0,0.00016886,2]
[403643863,1769447668845,-500.0,0.00016886,2]
[403643864,1769447668875,-500.0,0.00016886,2]
[403643865,1769447668905,-500.0,0.00016886,2]
[403643866,1769447668935,-500.0,0.00016886,2]
[403643867,1769447669140,-500.0,0.00016886,2]
[403643868,1769447669171,-500.0,0.00016886,2]
[403643869,1769447669207,-500.0,0.00016886,2]
[403643870,1769447669241,-500.0,0.00016886,2]
[403643871,1769447669274,-500.0,0.00016886,2]
[403643872,1769447669305,-500.0,0.00016886,2]
[403643873,1769447669335,-500.0,0.00016886,2]
[403643874,1769447669366,-500.0,0.00016886,2]
[403643875,1769447669396,-500.0,0.00016886,2]
[403643876,1769447669431,-500.0,0.00016886,2]
[403643877,1769447669527,-500.0,0.00016886,2]
[403643878,1769447669558,-500.0,0.00016886,2]
[403643879,1769447669588,-500.0,0.00016886,2]
[403643880,1769447669617,-500.0,0.00016886,2]
[403643881,1769447669653,-500.0,0.00016886,2]
[403643882,1769447669685,-500.0,0.00016886,2]
[403643883,1769447669716,-500.0,0.00016886,2]
[403643884,1769447669747,-500.0,0.00016886,2]
[403643885,1769447669780,-500.0,0.00016886,2]
[403643886,1769447669812,-500.0,0.00016886,2]
[403643887,1769447669943,-500.0,0.00016886,2]
[403643888,1769447669976,-500.0,0.00016886,2]
[403643889,1769447670007,-500.0,0.00016886,2]
[403643890,1769447670038,-500.0,0.00016886,2]
[403643891,1769447670073,-500.0,0.00016886,2]
[403643892,1769447670106,-500.0,0.00016886,2]
[403643893,1769447670137,-500.0,0.00016886,2]
[403643894,1769447670167,-500.0,0.00016886,2]
[403643895,1769447670197,-500.0,0.00016886,2]
[403643896,1769447670229,-500.0,0.00016886,2]
[403643897,1769447671215,-500.0,0.00016886,2]
[403643898,1769447671248,-500.0,0.00016886,2]
[403643899,1769447671281,-500.0,0.00016886,2]
[403643900,1769447671312,-500.0,0.00016886,2]
[403643901,1769447671342,-500.0,0.00016886,2]
[403643902,1769447671374,-500.0,0.00016886,2]
[403643903,1769447671404,-500.0,0.00016886,2]
[403643904,1769447671440,-500.0,0.00016886,2]
[403643905,1769447671472,-500.0,0.00016886,2]
[403643906,1769447671504,-500.0,0.00016886,2]
[403643907,1769447671643,-500.0,0.00016886,2]
[403643908,1769447671677,-500.0,0.00016886,2]
[403643909,1769447671710,-500.0,0.00016886,2]
[403643910,1769447671744,-500.0,0.00016886,2]
[403643911,1769447671776,-500.0,0.00016886,2]
[403643912,1769447671812,-500.0,0.00016886,2]
[403643913,1769447671845,-500.0,0.00016886,2]
[403643914,1769447671876,-500.0,0.00016886,2]
[403643915,1769447671907,-500.0,0.00016886,2]
[403643916,1769447671939,-500.0,0.00016886,2]
[403643917,1769447672138,-500.0,0.00016886,2]
[403643918,1769447672170,-500.0,0.00016886,2]
[403643919,1769447672205,-500.0,0.00016886,2]
[403643920,1769447672236,-500.0,0.00016886,2]
[403643921,1769447672267,-500.0,0.00016886,2]
[403643922,1769447672298,-500.0,0.00016886,2]
[403643923,1769447672330,-500.0,0.00016886,2]
[403643924,1769447672361,-208.67620327,0.00016886,2]
[403643925,1769447672392,-500.0,0.00016886,2]
[403643926,1769447672426,-500.0,0.00016886,2]
[403643927,1769447672459,-82.65759346,0.00016886,2]
[403643928,1769447672566,-417.34240654,0.00016886,2]
[403643929,1769447672599,-500.0,0.00016886,2]
[403643930,1769447672632,-300.0,0.00016886,2]
[403643931,1769447674156,-117.40240654,0.00016887,2]
[403643932,1769447674170,-300.0,0.00016887,2]
[403643933,1769447674184,-7565.32518692,0.00016887,2]
[403643934,1769447674236,-10000.01,0.00016887,2]
[403643935,1769447674252,-10000.01,0.00016887,2]
[403643936,1769447674270,-10000.01,0.00016887,2]
[403643937,1769447674460,-1000.0,0.00016787,2]
[403643938,1769447674582,-8000.01,0.00016887,2]
[403643939,1769447674597,-10000.01,0.00016887,2]